bitfinex-derivatives/quotes_BTCF0:USTF0_20241117
["timestamp","ask_amount","ask_price","bid_price","bid_amount"]
[1731831709873,0.05367594,90641.0,90640.0,0.0208893]
[1731831711061,0.05367594,90641.0,90640.0,0.01180526]
[1731831713904,0.1689912,90641.0,90640.0,0.01180526]
[1731831714265,0.1689912,90641.0,90640.0,0.00453982]
[1731831714266,0.05367594,90641.0,90640.0,0.00453982]
[1731831714469,0.16898933,90641.0,90640.0,0.00453982]
[1731831715870,0.16898933,90641.0,90639.0,8.01e-05]
[1731831716073,0.22415533,90640.0,90639.0,8.01e-05]
[1731831716493,0.22415533,90640.0,90639.0,0.00445027]
[1731831717874,0.32959533,90640.0,90639.0,0.00445027]
[1731831718362,0.33081315,90640.0,90639.0,8.01e-05]
[1731831719167,0.69161315,90640.0,90639.0,8.01e-05]
[1731831723567,0.92274749,90640.0,90639.0,8.01e-05]
[1731831723966,0.92315623,90640.0,90639.0,8.01e-05]
[1731831724189,0.69161315,90640.0,90639.0,8.01e-05]
[1731831724397,0.92315785,90640.0,90639.0,8.01e-05]
[1731831724677,0.82857647,90640.0,90639.0,8.01e-05]
[1731831725966,0.82857647,90640.0,90639.0,0.00451981]
[1731831726174,0.82857647,90640.0,90639.0,8.01e-05]
[1731831727473,0.82857647,90640.0,90635.0,0.0051]
[1731831727474,0.77341047,90640.0,90635.0,0.00500407]
[1731831727767,0.77341047,90640.0,90617.0,0.0636]
[1731831727768,0.055179,90618.0,90617.0,0.0636]
[1731831728165,0.055179,90618.0,90600.0,0.10112]
[1731831728166,0.63815668,90618.0,90600.0,0.10112]
[1731831728173,0.30357547,90607.0,90601.0,0.03845818]
[1731831728366,0.05368045,90606.0,90602.0,0.00705818]
[1731831728570,0.05368045,90606.0,90603.0,0.01145456]
[1731831728571,0.16536511,90604.0,90603.0,0.01145456]
[1731831728964,0.16536511,90605.0,90604.0,0.055187]
[1731831729170,0.3608,90608.0,90606.0,0.055186]
[1731831729368,0.16535571,90607.0,90606.0,0.055186]
[1731831729575,0.3608,90608.0,90606.0,0.06665421]
[1731831730174,0.3608,90608.0,90607.0,0.01146821]
[1731831731596,0.05503295,90611.0,90607.0,0.01146821]
[1731831731785,0.16535571,90612.0,90608.0,0.01146821]
[1731831732087,0.22053871,90612.0,90609.0,0.01146821]
[1731831732381,0.22053871,90612.0,90610.0,0.01146821]
[1731831732577,0.055183,90612.0,90611.0,0.00439638]
[1731831732764,0.10887483,90612.0,90611.0,0.00439638]
[1731831733873,0.05369183,90612.0,90601.0,0.0314]
[1731831734086,0.05418506,90613.0,90602.0,0.0113292]
[1731831734087,0.52591964,90607.0,90602.0,0.0113292]
[1731831734264,0.52591964,90607.0,90602.0,0.00435672]
[1731831734501,0.52591964,90607.0,90603.0,0.0043627]
[1731831734502,0.055187,90605.0,90603.0,0.0043627]
[1731831734745,0.055187,90605.0,90604.0,0.0043627]
[1731831735190,0.16015568,90605.0,90604.0,0.0043627]
[1731831735370,0.21385173,90605.0,90604.0,0.0043627]
[1731831735594,0.21385173,90605.0,90600.0,0.1]
[1731831735595,0.055189,90601.0,90600.0,0.1]
[1731831735777,0.055189,90601.0,90600.0,0.10431371]
[1731831735778,0.10902254,90601.0,90600.0,0.10431371]
[1731831736168,0.10902254,90601.0,90600.0,0.1]
[1731831738467,0.05532271,90601.0,90600.0,0.1]
[1731831738671,0.22015279,90601.0,90600.0,0.1]
[1731831738881,0.10902427,90601.0,90600.0,0.1]
[1731831739278,0.05532271,90601.0,90600.0,0.1]
[1731831739479,0.22012459,90601.0,90600.0,0.1]
[1731831739686,0.27510742,90601.0,90600.0,0.1]
[1731831739981,0.11030554,90601.0,90600.0,0.1]
[1731831740482,0.2750789,90601.0,90600.0,0.1]
[1731831740911,0.18046656,90601.0,90600.0,0.1]
[1731831741604,0.12527756,90601.0,90600.0,0.1]
[1731831746307,0.05511654,90601.0,90600.0,0.1]
[1731831746596,0.18688925,90601.0,90600.0,0.1]
[1731831746907,0.05511654,90601.0,90600.0,0.163]
[1731831747381,0.18688925,90601.0,90600.0,0.163]
[1731831747804,0.05511654,90601.0,90600.0,0.163]
[1731831748368,0.05511654,90601.0,90600.0,0.16734599]
[1731831749275,0.12527756,90601.0,90600.0,0.16734599]
[1731831749611,0.12527756,90601.0,90600.0,0.163]
[1731831749778,0.12527756,90601.0,90600.0,0.16735966]
[1731831751264,0.0051,90606.0,90600.0,0.2374961]
[1731831751265,0.13177271,90605.0,90600.0,0.2374961]
[1731831751517,0.0051,90606.0,90602.0,0.3608]
[1731831751675,0.0051,90606.0,90605.0,0.055187]
[1731831751871,0.0051,90611.0,90610.0,0.055184]
[1731831752153,0.13177271,90615.0,90610.0,0.00433508]
[1731831752381,0.13177271,90615.0,90614.0,0.055181]
[1731831752715,0.13177271,90620.0,90612.0,0.07016102]
[1731831752986,0.13177271,90620.0,90611.0,0.3608]
[1731831752987,8.246e-05,90619.0,90618.0,0.055179]
[1731831753289,8.246e-05,90619.0,90618.0,0.05951408]
[1731831754016,8.246e-05,90619.0,90618.0,0.06662995]
[1731831754475,8.246e-05,90619.0,90618.0,0.07573864]
[1731831755384,8.246e-05,90619.0,90618.0,0.06686761]
[1731831755891,0.05564842,90633.0,90632.0,0.05517]
[1731831756206,0.13177271,90634.0,90632.0,0.05966353]
[1731831756382,0.00165662,90637.0,90635.0,0.055168]
[1731831756383,0.13177271,90636.0,90635.0,0.055168]
[1731831756689,0.00012675,90636.0,90635.0,0.415968]
[1731831758095,0.00012675,90636.0,90635.0,0.76064599]
[1731831758408,0.13177271,90654.0,90651.0,0.055153]
[1731831758586,0.13177271,90656.0,90652.0,0.00455783]
[1731831759199,8.716e-05,90655.0,90652.0,0.00455783]
[1731831760284,8.716e-05,90655.0,90644.0,0.3608]
[1731831760678,8.716e-05,90655.0,90644.0,0.415957]
[1731831760986,8.716e-05,90655.0,90645.0,0.055157]
[1731831761308,8.716e-05,90655.0,90644.0,0.3608]
[1731831761309,8.716e-05,90655.0,90646.0,0.055156]
[1731831761490,8.716e-05,90655.0,90647.0,0.055155]
[1731831762985,8.716e-05,90655.0,90644.0,0.3608]
[1731831762986,8.716e-05,90655.0,90648.0,0.055155]
[1731831763307,8.716e-05,90655.0,90654.0,0.055152]
[1731831763796,8.716e-05,90655.0,90654.0,0.088052]
[1731831764695,0.00165498,90671.0,90654.0,0.186092]
[1731831765008,0.00165498,90671.0,90669.0,0.3608]
[1731831765233,0.00165498,90671.0,90669.0,0.415942]
[1731831765700,0.00011104,90670.0,90669.0,0.415942]
[1731831766697,0.00011104,90670.0,90664.0,0.3608]
[1731831766908,0.00011104,90670.0,90665.0,0.00453401]
[1731831767086,0.00011104,90670.0,90668.0,0.055143]
[1731831767491,0.00011104,90670.0,90665.0,0.00453401]
[1731831767693,0.05525304,90670.0,90666.0,0.00453401]
[1731831767889,0.05525304,90670.0,90667.0,0.00453401]
[1731831768295,0.05525304,90670.0,90668.0,0.00453401]
[1731831768497,0.05525304,90670.0,90669.0,0.00453401]
[1731831768897,0.00011104,90670.0,90669.0,0.00453401]
[1731831772289,0.00011104,90670.0,90669.0,0.01179205]
[1731831773608,0.00011104,90670.0,90669.0,0.00453401]
[1731831773991,0.00011104,90670.0,90666.0,0.055144]
[1731831774196,0.00011104,90670.0,90667.0,0.06675043]
[1731831774494,0.00011104,90670.0,90668.0,0.01607085]
[1731831774697,0.00011104,90670.0,90668.0,0.0116072]
[1731831774997,0.00011104,90670.0,90669.0,0.00446363]
[1731831775456,0.00011104,90670.0,90669.0,0.00440308]
[1731831776727,0.00011104,90670.0,90669.0,0.01145084]
[1731831776892,0.00011104,90670.0,90669.0,0.01145112]
[1731831777299,0.00011104,90670.0,90669.0,0.00704763]
[1731831778312,0.00011104,90670.0,90669.0,0.01145131]
[1731831778534,0.00011104,90670.0,90669.0,0.02033981]
[1731831779392,0.00011104,90670.0,90669.0,0.02035518]
[1731831783709,0.00011104,90670.0,90669.0,0.01145131]
[1731831784663,0.00011104,90670.0,90669.0,0.02020781]
[1731831784852,0.00011104,90670.0,90669.0,0.07271313]
[1731831785001,0.00011104,90670.0,90669.0,0.08413781]
[1731831785420,0.00011104,90670.0,90669.0,0.07535011]
[1731831785600,0.00011104,90670.0,90669.0,0.02421494]
[1731831785835,0.00011104,90670.0,90669.0,0.02020811]
[1731831786722,0.00011104,90670.0,90669.0,0.01142028]
[1731831787012,0.055149,90658.0,90655.0,0.3972]
[1731831787327,0.28482331,90657.0,90655.0,0.3972]
[1731831787607,0.16507331,90656.0,90655.0,0.3972]
[1731831787814,0.28482331,90657.0,90655.0,0.3972]
[1731831788209,0.28482331,90657.0,90652.0,0.00011114]
[1731831788210,0.22967331,90657.0,90652.0,0.00011114]
[1731831788611,0.16507331,90656.0,90652.0,0.00011114]
[1731831788921,0.27799112,90657.0,90652.0,0.00011114]
[1731831789717,0.16507331,90656.0,90652.0,0.00011114]
[1731831790210,0.0316,90656.0,90652.0,0.00011114]
[1731831790621,0.19667331,90656.0,90652.0,0.00011114]
[1731831790802,0.07006168,90655.0,90652.0,0.00011114]
[1731831791466,0.07006168,90655.0,90652.0,0.05526314]
[1731831795515,0.055152,90654.0,90652.0,0.00011114]
[1731831797122,0.22022531,90654.0,90652.0,0.00011114]
[1731831797319,0.05366332,90653.0,90652.0,0.00011114]
[1731831798268,0.055156,90647.0,90636.0,0.09508]
[1731831798413,0.132107,90641.0,90636.0,0.09508]
[1731831798748,0.22028976,90647.0,90634.0,0.055163]
[1731831798749,0.07006168,90637.0,90634.0,0.055163]
[1731831798918,0.132107,90639.0,90634.0,0.055163]
[1731831799220,0.132107,90640.0,90634.0,0.055163]
[1731831799430,0.132107,90639.0,90634.0,0.055163]
[1731831799615,0.132107,90639.0,90631.0,0.09508]
[1731831799828,0.132107,90640.0,90638.0,0.3608]
[1731831800324,0.132107,90641.0,90638.0,0.3608]
[1731831801038,0.132107,90640.0,90638.0,0.3608]
[1731831801230,0.132107,90639.0,90637.0,0.055162]
[1731831801525,0.132107,90640.0,90637.0,0.055162]
[1731831802108,0.0319,90639.0,90628.0,0.3608]
[1731831802313,0.055166,90630.0,90628.0,0.3608]
[1731831802741,0.055166,90630.0,90629.0,0.0041167]
[1731831803313,0.132107,90632.0,90629.0,0.0041167]
[1731831803530,0.132107,90632.0,90630.0,0.0041167]
[1731831803828,0.132107,90634.0,90631.0,0.06599062]
[1731831804026,0.137207,90635.0,90632.0,0.0041167]
[1731831804242,0.137207,90635.0,90633.0,0.0041167]
[1731831804427,0.137207,90635.0,90634.0,0.0041167]
[1731831804428,0.132107,90635.0,90634.0,0.0041167]
[1731831804617,0.132107,90636.0,90634.0,0.01082576]
[1731831804835,0.0319,90639.0,90635.0,0.0041167]
[1731831805014,0.13206282,90637.0,90636.0,0.00424743]
[1731831805213,0.13206282,90637.0,90636.0,0.37184499]
[1731831805412,0.16206282,90638.0,90637.0,0.055162]
[1731831805617,0.13206282,90638.0,90637.0,0.06620699]
[1731831805818,0.04831461,90638.0,90637.0,0.06620699]
[1731831806041,0.0319,90639.0,90637.0,0.01370468]
[1731831806231,0.0319,90639.0,90638.0,0.00690712]
[1731831806459,0.0319,90639.0,90638.0,0.00431584]
[1731831806928,0.0319,90639.0,90638.0,0.01122289]
[1731831807813,0.0319,90639.0,90638.0,0.00431584]
[1731831808477,0.08066842,90639.0,90638.0,0.00431584]
[1731831808930,0.08066842,90639.0,90637.0,0.00431588]
[1731831809228,0.08066842,90639.0,90638.0,0.00424618]
[1731831812544,0.08066842,90639.0,90637.0,0.00431588]
[1731831812630,0.08066842,90639.0,90638.0,0.00421263]
[1731831814526,0.04876842,90639.0,90638.0,0.00421263]
[1731831814836,0.0051,90640.0,90639.0,0.055161]
[1731831815035,0.13208026,90644.0,90642.0,0.055158]
[1731831815235,0.0051,90645.0,90643.0,0.00421263]
[1731831815425,0.16513376,90649.0,90644.0,0.00421263]
[1731831815628,0.16513376,90649.0,90645.0,0.00421263]
[1731831815629,0.21339106,90649.0,90645.0,0.00421263]
[1731831815823,0.21339106,90649.0,90646.0,0.00421263]
[1731831816041,0.21339106,90649.0,90647.0,0.00421263]
[1731831816403,0.16513376,90648.0,90643.0,0.055158]
[1731831817427,0.22028876,90648.0,90644.0,0.0042429]
[1731831817620,0.22028876,90648.0,90645.0,0.0042429]
[1731831817827,0.16513376,90647.0,90646.0,0.0042429]
[1731831818247,0.05366714,90647.0,90646.0,0.0042429]
[1731831818431,0.05366769,90647.0,90646.0,0.0042429]
[1731831818624,0.10395814,90648.0,90646.0,0.0042429]
[1731831818831,0.05366769,90647.0,90631.0,0.055165]
[1731831819131,0.13221344,90633.0,90632.0,0.01088096]
[1731831819414,0.13221344,90633.0,90632.0,0.01088263]
[1731831820336,0.13221344,90634.0,90632.0,0.01088263]
[1731831820523,0.13221344,90634.0,90633.0,0.01088263]
[1731831820728,0.07009603,90634.0,90633.0,0.01088263]
[1731831821125,0.07009603,90634.0,90633.0,0.00418499]
[1731831821347,0.1652668,90635.0,90633.0,0.00418499]
[1731831821663,0.1652668,90635.0,90634.0,0.00418499]
[1731831821828,0.05367458,90635.0,90634.0,0.00418499]
[1731831822030,0.19535506,90636.0,90634.0,0.00418499]
[1731831822342,0.19535506,90636.0,90635.0,0.00418499]
[1731831822546,0.19386672,90636.0,90626.0,7.916e-05]
[1731831822853,0.16528017,90631.0,90627.0,0.01089855]
[1731831823042,0.07009603,90628.0,90627.0,0.01089855]
[1731831823257,0.07009603,90628.0,90627.0,0.01090553]
[1731831825041,0.07009603,90628.0,90627.0,0.0041938]
[1731831826081,0.12526303,90628.0,90626.0,7.916e-05]
[1731831826401,0.12526303,90628.0,90627.0,0.00409595]
[1731831826639,0.17894317,90628.0,90626.0,7.916e-05]
[1731831827021,0.05368014,90627.0,90626.0,7.916e-05]
[1731831827150,0.12377617,90627.0,90626.0,7.916e-05]
[1731831827456,0.24653932,90627.0,90626.0,7.916e-05]
[1731831827779,0.27292329,90627.0,90626.0,7.916e-05]
[1731831828636,0.34301932,90627.0,90626.0,7.916e-05]
[1731831828845,0.22038208,90627.0,90626.0,7.916e-05]
[1731831829043,0.3431541,90627.0,90626.0,7.916e-05]
[1731831829287,0.22038208,90627.0,90626.0,7.916e-05]
[1731831829655,0.15028605,90627.0,90626.0,7.916e-05]
[1731831830553,0.55142208,90627.0,90626.0,7.916e-05]
[1731831830768,0.70890543,90627.0,90626.0,7.916e-05]
[1731831831152,0.70890543,90627.0,90611.0,0.0051]
[1731831831381,0.055179,90609.0,90607.0,0.3608]
[1731831831542,0.032,90608.0,90607.0,0.3608]
[1731831832156,0.055183,90603.0,90600.0,0.1]
[1731831832344,0.2924325,90603.0,90600.0,0.1]
[1731831832547,0.13206968,90602.0,90600.0,0.1]
[1731831832954,0.16036282,90603.0,90600.0,0.1]
[1731831832955,0.13206968,90601.0,90600.0,0.1]
[1731831833183,0.13206539,90601.0,90600.0,0.1]
[1731831833353,0.13206539,90602.0,90600.0,0.1]
[1731831833864,0.13206539,90601.0,90600.0,0.1]
[1731831834061,0.13206539,90601.0,90600.0,0.10410895]
[1731831834373,0.13196064,90601.0,90600.0,0.1]
[1731831834574,0.13196064,90601.0,90600.0,0.10410892]
[1731831835462,0.18714364,90602.0,90600.0,0.10410259]
[1731831835662,0.13196064,90601.0,90600.0,0.1]
[1731831836353,0.055183,90602.0,90600.0,0.1]
[1731831838015,0.13196064,90605.0,90600.0,0.1]
[1731831838358,0.0051,90608.0,90601.0,0.0356164]
[1731831838459,0.0051,90608.0,90606.0,0.05518]
[1731831838768,0.0051,90613.0,90602.0,0.055183]
[1731831838946,0.0051,90613.0,90612.0,0.3608]
[1731831839151,0.055176,90615.0,90612.0,0.3608]
[1731831839354,0.0051,90619.0,90612.0,0.3608]
[1731831839355,0.04789095,90616.0,90612.0,0.3608]
[1731831839665,0.0051,90619.0,90618.0,0.055173]
[1731831839869,0.13196064,90623.0,90618.0,0.055173]
[1731831839870,0.04946178,90623.0,90618.0,0.055173]
[1731831840059,0.0051,90625.0,90622.0,0.3608]
[1731831840257,0.00012591,90627.0,90622.0,0.3608]
[1731831840471,0.04811382,90627.0,90623.0,0.00439001]
[1731831841062,0.04811382,90627.0,90622.0,0.3608]
[1731831841063,0.04811382,90627.0,90624.0,0.00439001]
[1731831841260,0.04811382,90627.0,90625.0,0.00439001]
[1731831841500,0.04811382,90627.0,90626.0,0.00439001]
[1731831841659,0.04811382,90627.0,90626.0,0.00879824]
[1731831842164,0.04811382,90627.0,90626.0,0.00440823]
[1731831842561,0.04811382,90627.0,90622.0,0.3608]
[1731831843265,0.04811382,90627.0,90623.0,0.01151082]
[1731831843593,0.055169,90626.0,90624.0,0.00437146]
[1731831843755,0.055169,90626.0,90625.0,0.00437146]
[1731831844064,0.055175,90616.0,90612.0,0.3608]
[1731831844367,0.10517982,90613.0,90612.0,0.3608]
[1731831844969,0.10517982,90613.0,90612.0,0.36796243]
[1731831845271,0.10517982,90613.0,90612.0,0.37243784]
[1731831845571,0.10517982,90613.0,90612.0,0.01163784]
[1731831845967,0.15308784,90613.0,90612.0,0.01163784]
[1731831846168,0.15308784,90613.0,90604.0,0.3608]
[1731831846465,0.15308784,90613.0,90602.0,0.055183]
[1731831846466,0.04790802,90613.0,90612.0,0.00447097]
[1731831846707,0.22031899,90613.0,90599.0,0.3608]
[1731831846890,0.22031899,90613.0,90595.0,0.05919804]
[1731831846891,0.10517982,90601.0,90595.0,0.05919804]
[1731831847275,0.10517982,90601.0,90600.0,0.10444032]
[1731831847591,0.10517982,90601.0,90600.0,0.10887966]
[1731831848484,0.10517982,90601.0,90600.0,0.11601242]
[1731831850199,0.10517982,90601.0,90600.0,0.10887966]
[1731831850586,0.10517982,90601.0,90600.0,0.10878354]
[1731831850904,0.15477524,90601.0,90600.0,0.10878354]
[1731831851925,0.15477524,90601.0,90600.0,0.10877783]
[1731831852760,0.15477524,90601.0,90600.0,0.11574802]
[1731831853164,0.15477524,90601.0,90600.0,0.11575004]
[1731831853675,0.0051,90607.0,90600.0,0.11575004]
[1731831853676,0.0051,90607.0,90601.0,0.055184]
[1731831853894,0.0051,90607.0,90605.0,0.3608]
[1731831854071,0.0051,90607.0,90606.0,0.00433849]
[1731831854072,0.0482529,90607.0,90606.0,0.00433849]
[1731831854273,0.055179,90608.0,90606.0,0.00433849]
[1731831854463,0.055179,90608.0,90607.0,0.00433849]
[1731831855002,0.055179,90608.0,90602.0,0.3608]
[1731831855170,0.055179,90608.0,90603.0,0.0043757]
[1731831855361,0.055179,90608.0,90604.0,0.00437296]
[1731831855573,0.10517982,90609.0,90605.0,0.00437296]
[1731831855760,0.10517982,90609.0,90606.0,0.00437296]
[1731831855956,0.10517982,90609.0,90607.0,0.00437296]
[1731831856172,0.15467811,90609.0,90608.0,0.00437296]
[1731831858673,0.15467811,90609.0,90605.0,0.3608]
[1731831858981,0.15467811,90609.0,90606.0,0.01142041]
[1731831859167,0.16523821,90608.0,90607.0,0.0043918]
[1731831859363,0.15467811,90609.0,90607.0,0.0043918]
[1731831859565,0.15467811,90609.0,90608.0,0.0043918]
[1731831859763,0.20836865,90609.0,90608.0,0.0043918]
[1731831860167,0.20837083,90609.0,90608.0,0.0043918]
[1731831862277,0.20837012,90609.0,90608.0,0.0043918]
[1731831865278,0.20837012,90609.0,90600.0,0.1]
[1731831865526,0.1652327,90604.0,90600.0,0.1]
[1731831865685,0.1652327,90604.0,90601.0,0.00693564]
[1731831865980,0.1652327,90604.0,90602.0,0.00693564]
[1731831866195,0.1652327,90604.0,90600.0,0.1]
[1731831866479,0.1652327,90604.0,90601.0,0.01126612]
[1731831866678,0.1652327,90604.0,90600.0,0.1]
[1731831866679,0.1652327,90604.0,90602.0,0.00433372]
[1731831866979,0.1652327,90604.0,90600.0,0.1]
[1731831866980,0.07014669,90603.0,90600.0,0.1]
[1731831867184,0.07014669,90603.0,90601.0,0.00433161]
[1731831867486,0.07014669,90603.0,90602.0,0.00433161]
[1731831868421,0.07014669,90603.0,90600.0,0.155184]
[1731831868691,0.07014669,90603.0,90601.0,0.01120093]
[1731831868887,0.07014669,90603.0,90602.0,0.00430743]
[1731831869084,0.07014669,90603.0,90598.0,0.00165543]
[1731831869085,0.19398701,90603.0,90598.0,0.00165543]
[1731831869290,0.055192,90588.0,90582.0,0.0051]
[1731831869583,0.3608,90600.0,90577.0,0.0331]
[1731831869584,0.07014669,90585.0,90578.0,0.5589215]
[1731831869777,0.07014669,90585.0,90584.0,0.00697476]
[1731831870279,0.07014669,90585.0,90584.0,8.602e-05]
[1731831870782,0.16519263,90590.0,90584.0,8.602e-05]
[1731831870783,0.10523058,90586.0,90584.0,8.602e-05]
[1731831873377,0.20929781,90586.0,90585.0,0.00683114]
[1731831873785,0.20929781,90586.0,90584.0,8.602e-05]
[1731831874284,0.20929781,90586.0,90585.0,0.00679526]
[1731831875080,0.20929781,90586.0,90584.0,8.602e-05]
[1731831881186,0.20929781,90586.0,90585.0,0.00417443]
[1731831885315,0.20929781,90586.0,90585.0,0.00416459]
[1731831886389,0.04887423,90586.0,90585.0,0.00416459]
[1731831886589,0.055191,90590.0,90585.0,0.03706459]
[1731831886887,0.055191,90590.0,90586.0,0.00416459]
[1731831887292,0.055191,90590.0,90585.0,0.0329]
[1731831887293,0.055191,90590.0,90587.0,0.01097782]
[1731831887509,0.055191,90590.0,90588.0,0.00416459]
[1731831887692,0.10340445,90590.0,90589.0,0.00416459]
[1731831888276,0.10340445,90590.0,90587.0,0.055192]
[1731831888395,0.10340445,90590.0,90588.0,0.00425741]
[1731831888699,0.10340445,90590.0,90589.0,0.00425741]
[1731831892399,0.26859708,90590.0,90589.0,0.00425741]
[1731831892704,0.15710514,90590.0,90589.0,0.00425741]
[1731831892916,0.22728565,90590.0,90589.0,0.00425741]
[1731831894820,0.055194,90585.0,90584.0,8.602e-05]
[1731831895017,0.12537451,90585.0,90584.0,8.602e-05]
[1731831895233,0.29060937,90585.0,90584.0,8.602e-05]
[1731831895387,0.29060937,90585.0,90584.0,0.00426364]
[1731831895388,0.32260937,90585.0,90584.0,0.00426364]
[1731831895595,0.15737451,90585.0,90584.0,0.00426364]
[1731831896105,0.21107744,90585.0,90584.0,0.00426364]
[1731831900331,0.15588344,90585.0,90584.0,0.01091617]
[1731831900505,0.15588344,90585.0,90584.0,0.06611017]
[1731831900722,0.15588344,90585.0,90584.0,0.01091617]
[1731831900916,0.15588344,90585.0,90584.0,0.00426432]
[1731831901114,0.15588344,90585.0,90584.0,0.01095125]
[1731831902269,0.05370293,90585.0,90584.0,0.01095125]
[1731831902402,0.0051,90592.0,90584.0,0.37175125]
[1731831902606,0.16544515,90587.0,90586.0,0.19873171]
[1731831902812,0.16544515,90588.0,90587.0,0.055192]
[1731831903013,0.16544515,90588.0,90587.0,0.20541972]
[1731831903317,0.05369969,90588.0,90587.0,0.01086523]
[1731831903814,0.05369905,90588.0,90587.0,0.01086523]
[1731831904114,0.05369905,90588.0,90587.0,0.06605723]
[1731831904326,0.07018051,90589.0,90587.0,0.06605723]
[1731831904506,0.07018051,90589.0,90588.0,0.00668693]
[1731831904904,0.07018051,90589.0,90588.0,0.01086523]
[1731831905732,0.0537265,90592.0,90591.0,0.05519]
[1731831906011,0.0486265,90592.0,90591.0,0.06605523]
[1731831906202,0.05369815,90593.0,90591.0,0.06605523]
[1731831906409,0.05369815,90593.0,90592.0,0.37166523]
[1731831907511,0.04737901,90596.0,90592.0,0.37166523]
[1731831907716,0.05369795,90595.0,90593.0,0.06605323]
[1731831908016,0.05369795,90594.0,90593.0,0.055188]
[1731831908213,0.05369795,90596.0,90593.0,0.01109056]
[1731831908409,0.25180947,90596.0,90594.0,0.01109056]
[1731831908611,0.05369795,90595.0,90592.0,0.3608]
[1731831908817,0.16541849,90594.0,90593.0,0.09640109]
[1731831909027,0.0051,90602.0,90601.0,0.055184]
[1731831909211,0.19811152,90607.0,90606.0,0.055181]
[1731831909410,0.05369367,90607.0,90606.0,0.06620957]
[1731831909812,0.19811152,90607.0,90606.0,0.06620957]
[1731831910134,0.12535851,90611.0,90610.0,0.055178]
[1731831910135,0.11786985,90611.0,90610.0,0.055178]
[1731831910400,0.17155747,90611.0,90610.0,0.415978]
[1731831910525,0.17155747,90611.0,90610.0,0.4202253]
[1731831911403,0.11786985,90611.0,90610.0,0.4202253]
[1731831917624,0.24990646,90611.0,90610.0,0.4202253]
[1731831919028,0.17972595,90611.0,90610.0,0.4202253]
[1731831919423,0.04768934,90611.0,90610.0,0.42719363]
[1731831919737,0.20218926,90612.0,90610.0,0.4202253]
[1731831919931,0.20218926,90612.0,90611.0,0.0042473]
[1731831921336,0.07018051,90612.0,90611.0,0.0042473]
[1731831921517,0.05115591,90613.0,90611.0,0.055177]
[1731831921717,0.13197287,90612.0,90611.0,0.055177]
[1731831921916,0.13197287,90612.0,90611.0,0.05945683]
[1731831922328,0.18312878,90613.0,90611.0,0.05945683]
[1731831922637,0.18312878,90613.0,90612.0,0.00427983]
[1731831923031,0.18312878,90613.0,90612.0,0.02712175]
[1731831924210,0.05115591,90613.0,90612.0,0.02712175]
[1731831924438,0.183121,90613.0,90612.0,0.03140183]
[1731831925039,0.183121,90613.0,90612.0,0.027122]
[1731831925346,0.05115591,90613.0,90612.0,0.027122]
[1731831926536,0.18313995,90613.0,90612.0,0.027122]
[1731831926777,0.05115591,90613.0,90612.0,0.03402587]
[1731831927042,0.05115591,90613.0,90612.0,0.03402585]
[1731831927235,0.13198404,90618.0,90612.0,0.027122]
[1731831927542,0.0051,90620.0,90619.0,0.055173]
[1731831927723,0.13198404,90625.0,90624.0,0.05517]
[1731831927923,0.13198404,90626.0,90624.0,0.443092]
[1731831928236,0.07030642,90627.0,90626.0,0.055169]
[1731831928444,0.07030642,90627.0,90626.0,0.05944908]
[1731831929140,0.11845671,90627.0,90626.0,0.082291]
[1731831933294,0.0482762,90627.0,90626.0,0.08239547]
[1731831933444,0.0482762,90627.0,90626.0,0.08941361]
[1731831933732,0.0482762,90627.0,90626.0,0.07801092]
[1731831933960,0.0482762,90627.0,90626.0,0.08943784]
[1731831934244,0.0482762,90627.0,90626.0,0.08240522]
[1731831934632,0.0482762,90627.0,90626.0,0.0894385]
[1731831936442,0.0482762,90627.0,90626.0,0.07801092]
[1731831936443,0.11845671,90627.0,90626.0,0.07801092]
[1731831936651,0.11845671,90627.0,90626.0,0.0342808]
[1731831936947,0.11845671,90627.0,90626.0,0.02724082]
[1731831938358,0.17213805,90627.0,90626.0,0.02724082]
[1731831938845,0.17213805,90627.0,90613.0,0.3608]
[1731831939050,0.12535551,90615.0,90614.0,0.00693543]
[1731831939440,0.12535551,90615.0,90610.0,0.00108]
[1731831939753,0.12535551,90615.0,90611.0,0.00689061]
[1731831939754,0.055177,90613.0,90611.0,0.00689061]
[1731831939944,0.055181,90607.0,90602.0,0.3608]
[1731831940139,0.07018051,90603.0,90602.0,0.3608]
[1731831940337,0.07018051,90603.0,90602.0,0.36769157]
[1731831942747,0.11788997,90603.0,90602.0,0.36769157]
[1731831943437,0.11788997,90603.0,90602.0,0.3608]
[1731831944364,0.0333,90606.0,90602.0,0.3608]
[1731831944557,0.1320435,90603.0,90602.0,0.415983]
[1731831944941,0.1320435,90603.0,90602.0,0.42286662]
[1731831945141,0.20222401,90603.0,90602.0,0.42286662]
[1731831945360,0.20222401,90603.0,90602.0,0.36768362]
[1731831945564,0.07018051,90603.0,90602.0,0.00688362]
[1731831945849,0.055183,90602.0,90600.0,0.00165546]
[1731831946238,0.087483,90602.0,90600.0,0.00165546]
[1731831946339,0.19490675,90601.0,90600.0,0.00165546]
[1731831947059,0.0629,90601.0,90600.0,0.00165546]
[1731831947242,0.0629,90601.0,90600.0,0.00850386]
[1731831947434,0.0629,90601.0,90600.0,0.00165546]
[1731831948747,0.19490675,90601.0,90600.0,0.00165546]
[1731831949140,0.0629,90601.0,90600.0,0.00165546]
[1731831950959,0.0629,90601.0,90600.0,0.00593718]
[1731831951757,0.0629,90601.0,90600.0,0.01280267]
[1731831952069,0.0315,90601.0,90600.0,0.00593718]
[1731831952243,0.0315,90601.0,90600.0,0.01280274]
[1731831952469,0.0315,90601.0,90600.0,0.00593718]
[1731831952662,0.0315,90601.0,90600.0,0.01280231]
[1731831953003,0.0315,90601.0,90600.0,0.00593682]
[1731831953152,0.07018051,90603.0,90600.0,0.01278878]
[1731831953356,0.07018051,90603.0,90602.0,0.3608]
[1731831953544,0.07018051,90603.0,90602.0,0.36508136]
[1731831953748,0.07018051,90603.0,90602.0,0.37201445]
[1731831954858,0.07018051,90603.0,90602.0,0.36508136]
[1731831956058,0.07018051,90603.0,90602.0,0.3719944]
[1731831956354,0.13200675,90606.0,90603.0,0.055182]
[1731831956556,0.13200675,90607.0,90604.0,0.00428136]
[1731831956748,0.13200675,90606.0,90605.0,0.06639573]
[1731831956966,0.13200675,90610.0,90607.0,0.05518]
[1731831957146,0.13200675,90611.0,90609.0,0.055179]
[1731831957353,0.13200675,90611.0,90605.0,0.03758136]
[1731831957354,0.13200675,90612.0,90611.0,0.055178]
[1731831957556,0.13200675,90612.0,90611.0,0.42025936]
[1731831957945,0.07018051,90614.0,90611.0,0.42025936]
[1731831958244,0.07018051,90614.0,90612.0,0.00428136]
[1731831958444,0.07018051,90614.0,90613.0,0.00428136]
[1731831958645,0.07018051,90614.0,90611.0,0.417058]